fUSD/lending_fUSD_20250108
["ID","MTS","AMOUNT","RATE_DAILY","PERIOD"]
[348149941,1736356238272,-500.0,0.00010585,2]
[348149943,1736356238286,-1464.27,0.00010585,2]
[348149945,1736356238296,-500.0,0.00010585,2]
[348149947,1736356238305,-412.34655573,0.00010585,2]
[348149949,1736356238314,-500.0,0.00010585,2]
[348149951,1736356238325,-500.0,0.00010585,2]
[348149953,1736356238335,-500.0,0.00010585,2]
[348149955,1736356238345,-500.0,0.00010585,2]
[348149958,1736356238355,-803.55,0.00010585,2]
[348149960,1736356238366,-500.0,0.00010702,2]
[348149961,1736356238375,-500.0,0.00010702,2]
[348149963,1736356238385,-694.26,0.00010702,2]
[348149965,1736356238395,-544.82,0.00010702,2]
[348149967,1736356238404,-1446.264,0.00010753,2]
[348149969,1736356238414,-150.0,0.00010753,2]
[348149971,1736356238424,-1950.74,0.00010788,2]
[348149973,1736356238434,-150.0,0.00010788,2]
[348149975,1736356238443,-150.0,0.00010788,2]
[348149978,1736356238453,-150.0,0.00010788,2]
[348149980,1736356238464,-150.0,0.00010788,2]
[348149982,1736356238474,-302.24,0.00010788,2]
[348149984,1736356238484,-301.5,0.00010788,2]
[348149986,1736356238493,-500.0,0.0001082,2]
[348149988,1736356238503,-956.12,0.0001082,2]
[348149990,1736356238512,-2115.02,0.0001082,2]
[348149992,1736356238522,-500.0,0.0001082,2]
[348149994,1736356238540,-908.98,0.0001082,2]
[348149996,1736356238549,-1118.12,0.0001082,2]
[348149998,1736356238559,-500.0,0.0001082,2]
[348150000,1736356238569,-2210.18,0.0001082,2]
[348150002,1736356238579,-531.58,0.0001082,2]
[348150004,1736356238588,-500.0,0.0001082,2]
[348150005,1736356238597,-1085.66,0.0001082,2]
[348150007,1736356238607,-765.15,0.0001082,2]
[348150009,1736356238616,-500.0,0.0001082,2]
[348150011,1736356238625,-500.0,0.00010821,2]
[348150013,1736356238635,-1592.55,0.00010821,2]
[348150015,1736356238644,-796.27,0.00010821,2]
[348150017,1736356238653,-555.33,0.00010821,2]
[348150019,1736356238663,-500.0,0.00010821,2]
[348150021,1736356238672,-500.0,0.00010821,2]
[348150023,1736356238680,-500.0,0.00010849,2]
[348150025,1736356238689,-927.09,0.00010859,2]
[348150027,1736356238699,-933.18,0.00010859,2]
[348150029,1736356238709,-801.47,0.00010859,2]
[348150031,1736356238719,-500.0,0.00010859,2]
[348150033,1736356238727,-1464.27,0.00010859,2]
[348150035,1736356238738,-500.0,0.00010859,2]
[348150037,1736356238749,-500.0,0.00010859,2]
[348150039,1736356238758,-523.26393349,0.00010859,2]
[348150041,1736356238767,-803.55,0.00010859,2]
[348150043,1736356238784,-500.0,0.00010899,2]
[348150045,1736356238793,-500.0,0.00010899,2]
[348150047,1736356238802,-500.0,0.00010899,2]
[348150049,1736356238812,-503.71,0.00010899,2]
[348150051,1736356238821,-500.0,0.00010899,2]
[348150053,1736356238830,-500.0,0.00010899,2]
[348150055,1736356238839,-711.96,0.00010899,2]
[348150057,1736356238848,-1105.89,0.00010899,2]
[348150059,1736356238857,-716.7,0.00010899,2]
[348150060,1736356238867,-856.652496,0.00010899,2]
[348150063,1736356238878,-500.0,0.00010899,2]
[348150065,1736356238890,-159.14314,0.00010899,2]
[348150066,1736356238900,-157.150173,0.00010899,2]
[348150067,1736356238909,-922.210629,0.00010899,2]
[348150068,1736356238918,-2474.78,0.00010899,2]
[348150069,1736356238927,-500.0,0.00010899,2]
[348150070,1736356238937,-172119.06851,0.000109,2]
[348150071,1736356238946,-1000.0,0.000109,3]
[348150072,1736356238955,-200.28146261,0.000109,2]
[348150073,1736356238967,-539.34,0.0001092,2]
[348150074,1736356238976,-2649.059,0.0001093,2]
[348150076,1736356238985,-150.0,0.00010959,2]
[348150078,1736356238995,-500.0,0.00010976,2]
[348150080,1736356239006,-500.0,0.00010976,2]
[348150082,1736356239016,-694.26,0.00010976,2]
[348150084,1736356239029,-544.82,0.00010976,2]
[348150086,1736356239039,-150.0,0.00010978,2]
[348150088,1736356239047,-150.0,0.00010978,2]
[348150089,1736356239057,-150.0,0.00010978,2]
[348150091,1736356239066,-1665.88,0.00010978,2]
[348150093,1736356239076,-200.28146253,0.00010983,2]
[348150095,1736356239085,-500.0,0.00010986,2]
[348150097,1736356239095,-550.0,0.00011,2]
[348150099,1736356239104,-2000.0,0.00011,4]
[348150101,1736356239114,-150.0,0.00011047,2]
[348150103,1736356239123,-150.0,0.00011047,2]
[348150105,1736356239132,-150.0,0.00011047,2]
[348150107,1736356239142,-303.1807,0.00011049,2]
[348150109,1736356239152,-1320.0593,0.00011049,2]
[348150111,1736356239161,-200.28146253,0.00011067,2]
[348150113,1736356239171,-500.0,0.00011094,2]
[348150115,1736356239181,-956.12,0.00011094,2]
[348150117,1736356239190,-2115.02,0.00011094,2]
[348150119,1736356239199,-500.0,0.00011094,2]
[348150121,1736356239209,-908.98,0.00011094,2]
[348150123,1736356239219,-1118.12,0.00011094,2]
[348150125,1736356239229,-500.0,0.00011094,2]
[348150127,1736356239239,-2210.18,0.00011094,2]
[348150129,1736356239249,-531.58,0.00011094,2]
[348150131,1736356239259,-500.0,0.00011094,2]
[348150133,1736356239268,-1085.66,0.00011094,2]
[348150135,1736356239286,-765.15,0.00011094,2]
[348150137,1736356239295,-500.0,0.00011094,2]
[348150139,1736356239304,-500.0,0.00011095,2]
[348150141,1736356239314,-1592.55,0.00011095,2]
[348150143,1736356239323,-796.27,0.00011095,2]
[348150145,1736356239332,-555.33,0.00011095,2]
[348150147,1736356239342,-500.0,0.00011095,2]
[348150149,1736356239352,-3100.0,0.000111,4]
[348150151,1736356239362,-927.09,0.00011133,2]
[348150153,1736356239372,-933.18,0.00011133,2]
[348150155,1736356239382,-801.47,0.00011133,2]
[348150157,1736356239391,-500.0,0.00011133,2]
[348150159,1736356239401,-1464.27,0.00011133,2]
[348150161,1736356239410,-500.0,0.00011133,2]
[348150163,1736356239420,-454.59097114,0.00011133,2]
[348150165,1736356239429,-803.55,0.00011133,2]
[348150167,1736356239439,-17171.1824,0.00011149,2]
[348150169,1736356239449,-14452.4227,0.00011149,2]
[348150171,1736356239459,-1921.1561,0.00011149,2]
[348150173,1736356239469,-7277.0105,0.00011149,2]
[348150175,1736356239479,-5000.0,0.00011149,2]
[348150177,1736356239489,-200.28146253,0.0001115,2]
[348150179,1736356239499,-162.89,0.00011165,2]
[348150181,1736356239508,-500.0,0.00011173,2]
[348150183,1736356239518,-500.0,0.00011173,2]
[348150185,1736356239530,-500.0,0.00011173,2]
[348150187,1736356239540,-503.71,0.00011173,2]
[348150189,1736356239549,-441.64,0.00011173,2]
[348150190,1736356239559,-500.0,0.00011173,2]
[348150195,1736356239568,-711.96,0.00011173,2]
[348150197,1736356239577,-1105.89,0.00011173,2]
[348150199,1736356239586,-716.7,0.00011173,2]
[348150202,1736356239595,-856.652496,0.00011173,2]
[348150205,1736356239604,-500.0,0.00011173,2]
[348150207,1736356239614,-922.210629,0.00011173,2]
[348150209,1736356239623,-2474.78,0.00011173,2]
[348150211,1736356239632,-500.0,0.00011173,2]
[348150213,1736356239642,-150.0,0.00011183,2]
[348150215,1736356239652,-4100.0,0.000112,4]
[348150217,1736356239662,-200.28146253,0.00011233,2]
[348150219,1736356239672,-4507.44056491,0.00011246,2]
[348150221,1736356239681,-320.61840445,0.00011248,2]
[348150223,1736356239690,-500.0,0.00011248,2]
[348150225,1736356239700,-501.20829108,0.00011248,2]
[348150227,1736356239709,-500.0,0.00011248,2]
[348150229,1736356239720,-516.31,0.00011248,2]
[348150231,1736356239729,-500.0,0.00011248,2]
[348150233,1736356239739,-500.0,0.00011248,2]
[348150235,1736356239749,-500.0,0.00011248,2]
[348150237,1736356239758,-502.05437485,0.00011248,2]
[348150239,1736356239767,-500.0,0.00011248,2]
[348150241,1736356239780,-360.53425979,0.00011248,2]
[348150243,1736356239789,-500.0,0.00011248,2]
[348150245,1736356239799,-500.0,0.00011248,2]
[348150247,1736356239808,-500.0,0.00011248,2]
[348150249,1736356239818,-503.11114143,0.00011248,2]
[348150251,1736356239829,-500.0,0.00011248,2]
[348150253,1736356239839,-500.0,0.00011248,2]
[348150255,1736356239848,-500.0,0.00011248,2]
[348150257,1736356239857,-500.0,0.00011248,2]
[348150258,1736356239866,-500.0,0.00011248,2]
[348150260,1736356239875,-500.0,0.00011248,2]
[348150262,1736356239884,-500.0,0.00011248,2]
[348150263,1736356239896,-500.0,0.00011248,2]
[348150265,1736356239906,-547.09,0.00011248,2]
[348150267,1736356239914,-500.0,0.00011248,2]
[348150269,1736356239927,-500.0,0.00011248,2]
[348150270,1736356239936,-521.02,0.00011248,2]
[348150272,1736356239946,-500.0,0.00011248,2]
[348150274,1736356239956,-500.0,0.00011248,2]
[348150276,1736356239966,-500.0,0.00011248,2]
[348150277,1736356239976,-500.0,0.00011248,2]
[348150279,1736356239985,-500.0,0.00011248,2]
[348150281,1736356239995,-500.0,0.00011248,2]
[348150283,1736356240005,-500.0,0.00011248,2]
[348150284,1736356240016,-500.0,0.00011248,2]
[348150286,1736356240030,-500.0,0.00011248,2]
[348150288,1736356240039,-500.0,0.00011248,2]
[348150289,1736356240049,-548.48,0.00011248,2]
[348150291,1736356240059,-500.0,0.00011248,2]
[348150293,1736356240069,-500.0,0.00011248,2]
[348150295,1736356240078,-500.0,0.00011248,2]
[348150297,1736356240088,-500.0,0.00011248,2]
[348150298,1736356240098,-500.0,0.00011248,2]
[348150300,1736356240109,-500.0,0.00011248,2]
[348150302,1736356240118,-500.0,0.00011248,2]
[348150304,1736356240128,-500.0,0.00011248,2]
[348150306,1736356240137,-500.0,0.00011248,2]
[348150307,1736356240146,-500.0,0.00011248,2]
[348150309,1736356240155,-500.0,0.00011248,2]
[348150311,1736356240165,-500.0,0.00011248,2]
[348150313,1736356240175,-500.0,0.00011248,2]
[348150314,1736356240185,-511.92,0.00011248,2]
[348150316,1736356240195,-500.0,0.00011248,2]
[348150318,1736356240205,-500.0,0.00011248,2]
[348150320,1736356240218,-500.0,0.00011248,2]
[348150321,1736356240228,-500.0,0.00011248,2]
[348150323,1736356240238,-500.0,0.00011248,2]
[348150325,1736356240247,-500.0,0.00011248,2]
[348150326,1736356240257,-500.0,0.00011248,2]
[348150328,1736356240267,-500.0,0.00011248,2]
[348150330,1736356240278,-500.0,0.00011248,2]
[348150332,1736356240287,-500.0,0.00011248,2]
[348150334,1736356240297,-500.0,0.00011248,2]
[348150336,1736356240306,-500.0,0.00011248,2]
[348150337,1736356240315,-500.0,0.00011248,2]
[348150339,1736356240324,-188.25307377,0.00011248,2]
[348150341,1736356240334,-500.0,0.00011248,2]
[348150342,1736356240343,-500.0,0.00011248,2]
[348150344,1736356240353,-500.0,0.00011248,2]
[348150346,1736356240362,-500.0,0.00011248,2]
[348150348,1736356240372,-500.0,0.00011248,2]
[348150350,1736356240381,-500.0,0.00011248,2]
[348150351,1736356240391,-500.0,0.00011248,2]
[348150353,1736356240399,-500.0,0.00011248,2]
[348150355,1736356240409,-500.0,0.00011248,2]
[348150357,1736356240418,-500.0,0.00011248,2]
[348150359,1736356240429,-500.0,0.00011248,2]
[348150361,1736356240438,-500.0,0.00011248,2]
[348150362,1736356240449,-500.0,0.00011248,2]
[348150364,1736356240459,-500.0,0.00011248,2]
[348150366,1736356240469,-500.0,0.00011248,2]
[348150368,1736356240479,-500.0,0.00011248,2]
[348150370,1736356240488,-413.2312913,0.00011248,2]
[348150372,1736356240498,-500.0,0.00011248,2]
[348150374,1736356240507,-500.0,0.00011248,2]
[348150376,1736356240517,-500.0,0.00011248,2]
[348150377,1736356240528,-500.0,0.00011248,2]
[348150379,1736356240537,-500.0,0.00011248,2]
[348150381,1736356240546,-500.0,0.00011248,2]
[348150383,1736356240556,-500.0,0.00011248,2]
[348150385,1736356240565,-262.91110385,0.00011248,2]
[348150389,1736356240607,-237.08889615,0.00011248,2]
[348150391,1736356240616,-261.94338261,0.00011248,2]
[348150393,1736356240631,-238.05661739,0.00011248,2]
[348150395,1736356240641,-95.22498261,0.00011248,2]
[348150419,1736356240888,-404.77501739,0.00011248,2]
[348150421,1736356240898,-500.0,0.00011248,2]
[348150422,1736356240908,-500.0,0.00011248,2]
[348150423,1736356240917,-210.79,0.00011248,2]
[348150424,1736356240928,-500.0,0.00011248,2]
[348150425,1736356240937,-422.79743739,0.00011248,2]
[348150426,1736356240946,-500.0,0.00011248,2]
[348150427,1736356240955,-500.0,0.00011248,2]
[348150428,1736356240965,-500.0,0.00011248,2]
[348150429,1736356240974,-500.0,0.00011248,2]
[348150430,1736356240984,-500.0,0.00011248,2]
[348150431,1736356240993,-500.0,0.00011248,2]
[348150432,1736356241002,-292.27,0.00011248,2]
[348150433,1736356241011,-374.26799413,0.00011248,2]
[348150434,1736356241020,-500.0,0.00011248,2]
[348150436,1736356241034,-500.0,0.00011248,2]
[348150437,1736356241044,-500.0,0.00011248,2]
[348150439,1736356241053,-500.0,0.00011248,2]
[348150442,1736356241064,-500.0,0.00011248,2]
[348150443,1736356241073,-500.0,0.00011248,2]
[348150461,1736356241237,-500.0,0.00011248,2]
[348150463,1736356241248,-500.0,0.00011248,2]
[348150465,1736356241258,-500.0,0.00011248,2]
[348150468,1736356241268,-500.0,0.00011248,2]
[348150470,1736356241281,-500.0,0.00011248,2]
[348150472,1736356241291,-500.0,0.00011248,2]
[348150474,1736356241300,-500.0,0.00011248,2]
[348150476,1736356241310,-500.0,0.00011248,2]
[348150478,1736356241320,-500.0,0.00011248,2]
[348150479,1736356241329,-500.0,0.00011248,2]
[348150481,1736356241339,-500.0,0.00011248,2]
[348150483,1736356241349,-500.0,0.00011248,2]
[348150485,1736356241359,-503.60305246,0.00011248,2]
[348150487,1736356241369,-500.0,0.00011248,2]
[348150489,1736356241378,-500.0,0.00011248,2]
[348150491,1736356241388,-500.0,0.00011248,2]
[348150493,1736356241397,-500.0,0.00011248,2]
[348150495,1736356241407,-500.0,0.00011248,2]
[348150497,1736356241416,-500.0,0.00011248,2]
[348150499,1736356241426,-500.0,0.00011248,2]
[348150501,1736356241435,-500.0,0.00011248,2]
[348150503,1736356241444,-645.67,0.00011248,2]
[348150505,1736356241454,-500.0,0.00011248,2]
[348150507,1736356241465,-500.0,0.00011248,2]
[348150509,1736356241474,-500.0,0.00011248,2]
[348150511,1736356241484,-500.0,0.00011248,2]
[348150513,1736356241493,-500.0,0.00011248,2]
[348150515,1736356241502,-500.0,0.00011248,2]
[348150517,1736356241511,-500.0,0.00011248,2]
[348150519,1736356241520,-500.0,0.00011248,2]
[348150521,1736356241532,-500.0,0.00011248,2]
[348150523,1736356241542,-500.0,0.00011248,2]
[348150525,1736356241551,-126.72906363,0.00011248,2]
[348150527,1736356241563,-316.0861043,0.00011248,2]
[348150530,1736356241575,-57.18483207,0.00011248,2]
[348150532,1736356241584,-228.90639302,0.00011248,2]
[348150534,1736356241596,-271.09360698,0.00011248,2]
[348150536,1736356241605,-500.0,0.00011248,2]
[348150538,1736356241614,-500.0,0.00011248,2]
[348150540,1736356241624,-57.46835357,0.00011248,2]
[348150543,1736356241639,-442.53164643,0.00011248,2]
[348150544,1736356241648,-500.0,0.00011248,2]
[348150546,1736356241658,-500.0,0.00011248,2]
[348150548,1736356241669,-500.0,0.00011248,2]
[348150551,1736356241679,-500.0,0.00011248,2]
[348150553,1736356241690,-500.0,0.00011248,2]
[348150555,1736356241700,-500.0,0.00011248,2]
[348150556,1736356241710,-500.0,0.00011248,2]
[348150558,1736356241720,-500.0,0.00011248,2]
[348150560,1736356241729,-500.0,0.00011248,2]
[348150562,1736356241738,-443.62633174,0.00011248,2]
[348150564,1736356241748,-500.0,0.00011248,2]
[348150566,1736356241757,-232.42325814,0.00011248,2]
[348150568,1736356241769,-267.57674186,0.00011248,2]
[348150570,1736356241782,-500.0,0.00011248,2]
[348150572,1736356241791,-342.97632959,0.00011248,2]
[348150574,1736356241800,-500.0,0.00011248,2]
[348150576,1736356241809,-500.0,0.00011248,2]
[348150578,1736356241819,-500.0,0.00011248,2]
[348150580,1736356241829,-500.0,0.00011248,2]
[348150582,1736356241839,-500.0,0.00011248,2]
[348150584,1736356241848,-500.0,0.00011248,2]
[348150586,1736356241858,-500.0,0.00011248,2]
[348150588,1736356241868,-500.0,0.00011248,2]
[348150590,1736356241879,-500.0,0.00011248,2]
[348150592,1736356241892,-500.0,0.00011248,2]
[348150594,1736356241902,-502.40614974,0.00011248,2]
[348150596,1736356241911,-500.32994436,0.00011248,2]
[348150598,1736356241921,-500.0,0.00011248,2]
[348150600,1736356241931,-500.0,0.00011248,2]
[348150602,1736356241940,-500.0,0.00011248,2]
[348150604,1736356241949,-500.0,0.00011248,2]
[348150606,1736356241958,-500.0,0.00011248,2]
[348150608,1736356241968,-500.0,0.00011248,2]
[348150610,1736356241979,-500.0,0.00011248,2]
[348150612,1736356241988,-500.0,0.00011248,2]
[348150614,1736356241998,-500.0,0.00011248,2]
[348150616,1736356242007,-500.0,0.00011248,2]
[348150618,1736356242017,-500.0,0.00011248,2]
[348150621,1736356242031,-500.0,0.00011248,2]
[348150623,1736356242040,-500.0,0.00011248,2]
[348150625,1736356242050,-500.0,0.00011248,2]
[348150627,1736356242060,-500.0,0.00011248,2]
[348150629,1736356242069,-500.0,0.00011248,2]
[348150631,1736356242079,-505.54684248,0.00011248,2]
[348150633,1736356242088,-500.0,0.00011248,2]
[348150635,1736356242098,-297.94813251,0.00011248,2]
[348150637,1736356242108,-500.0,0.00011248,2]
[348150639,1736356242117,-500.0,0.00011248,2]
[348150641,1736356242127,-500.0,0.00011248,2]
[348150643,1736356242136,-359.94140245,0.00011248,2]
[348150644,1736356242146,-500.0,0.00011248,2]
[348150647,1736356242156,-747.68,0.00011248,2]
[348150648,1736356242165,-500.0,0.00011248,2]
[348150650,1736356242175,-500.0,0.00011248,2]
[348150652,1736356242184,-500.0,0.00011248,2]
[348150654,1736356242193,-500.0,0.00011248,2]
[348150656,1736356242202,-500.0,0.00011248,2]
[348150658,1736356242212,-500.0,0.00011248,2]
[348150660,1736356242221,-500.0,0.00011248,2]
[348150662,1736356242231,-500.0,0.00011248,2]
[348150664,1736356242241,-504.35809337,0.00011248,2]
[348150666,1736356242253,-500.0,0.00011248,2]
[348150668,1736356242265,-500.0,0.00011248,2]
[348150670,1736356242290,-500.0,0.00011248,2]
[348150672,1736356242308,-510.16374201,0.00011248,2]
[348150674,1736356242329,-500.0,0.00011248,2]
[348150675,1736356242339,-500.0,0.00011248,2]
[348150677,1736356242349,-500.0,0.00011248,2]
[348150679,1736356242359,-500.0,0.00011248,2]
[348150681,1736356242369,-500.0,0.00011248,2]
[348150683,1736356242382,-1680.09,0.00011248,2]
[348150686,1736356242394,-500.0,0.00011248,2]
[348150689,1736356242408,-500.0,0.00011248,2]
[348150691,1736356242418,-500.0,0.00011248,2]
[348150693,1736356242428,-500.0,0.00011248,2]
[348150695,1736356242438,-500.0,0.00011248,2]
[348150697,1736356242448,-500.0,0.00011248,2]
[348150699,1736356242458,-500.0,0.00011248,2]
[348150702,1736356242469,-500.0,0.00011248,2]
[348150704,1736356242478,-500.0,0.00011248,2]
[348150705,1736356242488,-500.0,0.00011248,2]
[348150707,1736356242497,-500.0,0.00011248,2]
[348150710,1736356242510,-500.0,0.00011248,2]
[348150712,1736356242522,-500.0,0.00011248,2]
[348150714,1736356242542,-503.11914748,0.00011248,2]
[348150715,1736356242551,-601.02416243,0.00011248,2]
[348150718,1736356242560,-500.0,0.00011248,2]
[348150720,1736356242569,-500.0,0.00011248,2]
[348150723,1736356242578,-503.16861672,0.00011248,2]
[348150726,1736356242587,-500.0,0.00011248,2]
[348150728,1736356242600,-500.0,0.00011248,2]
[348150732,1736356242610,-500.0,0.00011248,2]
[348150738,1736356242620,-500.0,0.00011248,2]
[348150741,1736356242629,-500.0,0.00011248,2]
[348150746,1736356242639,-1415.66,0.00011248,2]
[348150751,1736356242649,-500.0,0.00011248,2]
[348150754,1736356242659,-500.0,0.00011248,2]
[348150757,1736356242668,-500.0,0.00011248,2]
[348150761,1736356242678,-500.0,0.00011248,2]
[348150763,1736356242689,-500.0,0.00011248,2]
[348150766,1736356242698,-500.0,0.00011248,2]
[348150769,1736356242707,-500.0,0.00011248,2]
[348150772,1736356242716,-500.0,0.00011248,2]
[348150774,1736356242727,-131.40099108,0.00011248,2]
[348150803,1736356242972,-100.55448504,0.00011248,2]
[348150805,1736356242982,-500.0,0.00011248,2]
[348150807,1736356242992,-500.0,0.00011248,2]
[348150809,1736356243002,-500.0,0.00011248,2]
[348150811,1736356243012,-205.22344867,0.00011248,2]
[348150813,1736356243021,-500.0,0.00011248,2]
[348150815,1736356243036,-500.0,0.00011248,2]
[348150816,1736356243046,-500.0,0.00011248,2]
[348150817,1736356243057,-500.0,0.00011248,2]
[348150818,1736356243070,-500.0,0.00011248,2]
[348150819,1736356243081,-502.15216691,0.00011248,2]
[348150820,1736356243092,-500.0,0.00011248,2]
[348150822,1736356243103,-97.51467812,0.00011248,2]
[348150824,1736356243124,-427.75515542,0.00011248,2]
[348150826,1736356243135,-500.0,0.00011248,2]
[348150827,1736356243145,-500.0,0.00011248,2]
[348150828,1736356243156,-500.0,0.00011248,2]
[348150829,1736356243166,-88.38844116,0.00011248,2]
[348150830,1736356243179,-411.61155884,0.00011248,2]
[348150831,1736356243189,-500.0,0.00011248,2]
[348150832,1736356243201,-505.84222083,0.00011248,2]
[348150833,1736356243213,-501.65621525,0.00011248,2]
[348150834,1736356243225,-500.0,0.00011248,2]
[348150835,1736356243235,-500.0,0.00011248,2]
[348150836,1736356243245,-500.0,0.00011248,2]
[348150837,1736356243255,-500.0,0.00011248,2]
[348150838,1736356243265,-500.0,0.00011248,2]
[348150839,1736356243278,-500.0,0.00011248,2]
[348150840,1736356243287,-500.0,0.00011248,2]
[348150841,1736356243298,-500.94234092,0.00011248,2]
[348150842,1736356243307,-500.0,0.00011248,2]
[348150843,1736356243316,-502.98255748,0.00011248,2]
[348150844,1736356243326,-500.0,0.00011248,2]
[348150845,1736356243336,-501.59490912,0.00011248,2]
[348150846,1736356243346,-501.67341642,0.00011248,2]
[348150847,1736356243356,-500.0,0.00011248,2]
[348150848,1736356243367,-497.13480164,0.00011248,2]
[348150849,1736356243379,-2.86519836,0.00011248,2]
[348150850,1736356243388,-500.0,0.00011248,2]
[348150851,1736356243399,-490.66319289,0.00011248,2]
[348150852,1736356243408,-485.20087285,0.00011248,2]
[348150853,1736356243418,-142.07321089,0.00011248,2]
[348150854,1736356243429,-357.92678911,0.00011248,2]
[348150855,1736356243439,-456.20148273,0.00011248,2]
[348150856,1736356243448,-500.0,0.00011248,2]
[348150857,1736356243457,-500.0,0.00011248,2]
[348150858,1736356243467,-500.0,0.00011248,2]
[348150859,1736356243476,-500.0,0.00011248,2]
[348150860,1736356243485,-500.0,0.00011248,2]
[348150861,1736356243494,-500.0,0.00011248,2]
[348150862,1736356243503,-724.99,0.00011248,2]
[348150863,1736356243512,-539.67104774,0.00011248,2]
[348150864,1736356243522,-500.0,0.00011248,2]
[348150865,1736356243534,-500.0,0.00011248,2]
[348150866,1736356243543,-108.24957837,0.00011248,2]
[348150867,1736356243555,-391.75042163,0.00011248,2]
[348150868,1736356243564,-534.07519535,0.00011248,2]
[348150869,1736356243574,-124.00479564,0.00011248,2]
[348150870,1736356243585,-377.21212938,0.00011248,2]
[348150871,1736356243594,-500.0,0.00011248,2]
[348150872,1736356243603,-500.0,0.00011248,2]
[348150873,1736356243655,-500.0,0.00011248,2]
[348150874,1736356243665,-500.0,0.00011248,2]
[348150875,1736356243674,-500.0,0.00011248,2]
[348150876,1736356243684,-500.0,0.00011248,2]
[348150877,1736356243693,-500.0,0.00011248,2]
[348150878,1736356243703,-258.56,0.00011248,2]
[348150879,1736356243713,-500.0,0.00011248,2]
[348150880,1736356243723,-509.42545106,0.00011248,2]
[348150881,1736356243732,-500.0,0.00011248,2]
[348150882,1736356243741,-501.02285537,0.00011248,2]
[348150883,1736356243750,-500.0,0.00011248,2]
[348150884,1736356243759,-500.0,0.00011248,2]
[348150885,1736356243769,-502.73375582,0.00011248,2]
[348150886,1736356243781,-500.0,0.00011248,2]
[348150887,1736356243790,-500.0,0.00011248,2]
[348150888,1736356243799,-501.51411238,0.00011248,2]
[348150889,1736356243809,-500.0,0.00011248,2]
[348150890,1736356243817,-500.0,0.00011248,2]
[348150891,1736356243827,-500.0,0.00011248,2]
[348150892,1736356243836,-250.39124592,0.00011248,2]
[348150893,1736356243846,-500.0,0.00011248,2]
[348150894,1736356243856,-500.0,0.00011248,2]
[348150895,1736356243866,-500.0,0.00011248,2]
[348150896,1736356243877,-500.0,0.00011248,2]
[348150897,1736356243889,-500.0,0.00011248,2]
[348150898,1736356243898,-500.0,0.00011248,2]
[348150899,1736356243907,-505.66436472,0.00011248,2]
[348150900,1736356243917,-501.46323877,0.00011248,2]
[348150901,1736356243927,-500.84905799,0.00011248,2]
[348150902,1736356243936,-612.61,0.00011248,2]
[348150903,1736356243946,-504.35845348,0.00011248,2]
[348150904,1736356243956,-510.53195563,0.00011248,2]
[348150905,1736356243966,-436.26,0.00011248,2]
[348150906,1736356243976,-500.0,0.00011248,2]
[348150907,1736356243986,-500.0,0.00011248,2]
[348150908,1736356243995,-500.0,0.00011248,2]